fUSD/lending_fUSD_20250330
["ID","MTS","AMOUNT","RATE_DAILY","PERIOD"]
[356847215,1743322246414,-500.0,0.00041095,30]
[356847216,1743322246423,-500.0,0.00041095,30]
[356847217,1743322246433,-537.31230026,0.00041095,30]
[356847218,1743322246443,-500.0,0.00041095,30]
[356847219,1743322246452,-500.0,0.00041095,30]
[356847220,1743322246462,-500.0,0.00041095,30]
[356847221,1743322246473,-500.0,0.00041095,30]
[356847222,1743322246486,-500.0,0.00041095,30]
[356847223,1743322246496,-531.78751301,0.00041095,30]
[356847224,1743322246505,-500.0,0.00041095,30]
[356847225,1743322246515,-500.0,0.00041095,30]
[356847226,1743322246524,-1806.15,0.00041095,30]
[356847227,1743322246534,-542.30352299,0.00041095,30]
[356847228,1743322246544,-500.0,0.00041095,30]
[356847229,1743322246554,-571.97498473,0.00041095,30]
[356847230,1743322246564,-500.0,0.00041095,30]
[356847231,1743322246574,-500.0,0.00041095,30]
[356847232,1743322246586,-500.0,0.00041095,30]
[356847233,1743322246595,-500.0,0.00041095,30]
[356847234,1743322246604,-500.0,0.00041095,30]
[356847235,1743322246613,-500.0,0.00041095,30]
[356847236,1743322246622,-649.91359324,0.00041095,30]
[356847237,1743322246632,-500.0,0.00041095,30]
[356847238,1743322246641,-500.0,0.00041095,30]
[356847239,1743322246650,-161.93801349,0.00041095,30]
[356847240,1743322246659,-500.0,0.00041095,30]
[356847241,1743322246669,-560.69902333,0.00041095,30]
[356847242,1743322246678,-500.0,0.00041095,30]
[356847243,1743322246687,-546.90606209,0.00041095,30]
[356847244,1743322246696,-500.0,0.00041095,30]
[356847245,1743322246705,-500.0,0.00041095,30]
[356847246,1743322246715,-500.0,0.00041095,30]
[356847247,1743322246724,-611.52311029,0.00041095,30]
[356847248,1743322246735,-500.0,0.00041095,30]
[356847249,1743322246745,-500.0,0.00041095,30]
[356847251,1743322246754,-537.03951489,0.00041095,30]
[356847253,1743322246764,-507.94487606,0.00041095,30]
[356847255,1743322246773,-500.0,0.00041095,30]
[356847257,1743322246788,-500.0,0.00041095,30]
[356847259,1743322246798,-537.79512017,0.00041095,30]
[356847262,1743322246807,-500.0,0.00041095,30]
[356847264,1743322246816,-500.0,0.00041095,30]
[356847267,1743322246827,-500.0,0.00041095,30]
[356847269,1743322246836,-513.62947501,0.00041095,30]
[356847271,1743322246846,-500.0,0.00041095,30]
[356847273,1743322246856,-500.0,0.00041095,30]
[356847275,1743322246866,-500.0,0.00041095,30]
[356847277,1743322246876,-500.0,0.00041095,30]
[356847279,1743322246885,-539.76317593,0.00041095,30]
[356847281,1743322246895,-500.0,0.00041095,30]
[356847283,1743322246904,-500.0,0.00041095,30]
[356847285,1743322246913,-500.0,0.00041095,30]
[356847287,1743322246923,-500.0,0.00041095,30]
[356847289,1743322246932,-566.52716624,0.00041095,30]
[356847290,1743322246941,-622.50138197,0.00041095,30]
[356847291,1743322246950,-500.0,0.00041095,30]
[356847292,1743322246960,-500.0,0.00041095,30]
[356847293,1743322246969,-500.0,0.00041095,30]
[356847294,1743322246979,-500.0,0.00041095,30]
[356847295,1743322246991,-500.0,0.00041095,30]
[356847296,1743322247001,-526.45910235,0.00041095,30]
[356847297,1743322247010,-522.80710665,0.00041095,30]
[356847298,1743322247020,-1011.66,0.00041095,30]
[356847299,1743322247029,-500.0,0.00041095,30]
[356847300,1743322247039,-514.7500801,0.00041095,30]
[356847301,1743322247048,-500.0,0.00041095,30]
[356847302,1743322247057,-500.0,0.00041095,30]
[356847303,1743322247066,-500.0,0.00041095,30]
[356847304,1743322247076,-500.0,0.00041095,30]
[356847305,1743322247085,-500.0,0.00041095,30]
[356847306,1743322247095,-500.0,0.00041095,30]
[356847307,1743322247104,-531.27987351,0.00041095,30]
[356847308,1743322247114,-500.0,0.00041095,30]
[356847309,1743322247123,-549.48327448,0.00041095,30]
[356847310,1743322247133,-513.89753954,0.00041095,30]
[356847311,1743322247142,-500.0,0.00041095,30]
[356847312,1743322247151,-244.42,0.00041095,7]
[356847313,1743322247160,-500.0,0.00041095,30]
[356847314,1743322247169,-500.0,0.00041095,30]
[356847315,1743322247179,-602.73728647,0.00041095,30]
[356847316,1743322247188,-500.0,0.00041095,30]
[356847317,1743322247197,-500.0,0.00041095,30]
[356847318,1743322247207,-529.72988227,0.00041095,90]
[356847319,1743322247217,-500.0,0.00041095,30]
[356847320,1743322247226,-558.7057012,0.00041095,30]
[356847321,1743322247237,-523.3890848,0.00041095,30]
[356847322,1743322247246,-531.43306979,0.00041095,30]
[356847323,1743322247255,-595.33720794,0.00041095,30]
[356847324,1743322247264,-500.0,0.00041095,30]
[356847325,1743322247274,-559.45348809,0.00041095,30]
[356847326,1743322247283,-515.86296565,0.00041095,30]
[356847327,1743322247292,-500.0,0.00041095,30]
[356847328,1743322247301,-500.0,0.00041095,30]
[356847329,1743322247310,-500.0,0.00041095,30]
[356847330,1743322247319,-500.0,0.00041095,30]
[356847331,1743322247328,-644.47967927,0.00041095,30]
[356847332,1743322247338,-632.38495805,0.00041095,30]
[356847333,1743322247347,-521.82892918,0.00041095,30]
[356847334,1743322247356,-577.75727111,0.00041095,30]
[356847335,1743322247364,-518.70629605,0.00041095,30]
[356847336,1743322247374,-576.86377112,0.00041095,30]
[356847337,1743322247383,-500.0,0.00041095,30]
[356847338,1743322247394,-500.0,0.00041095,30]
[356847339,1743322247403,-500.0,0.00041095,30]
[356847340,1743322247412,-500.0,0.00041095,30]
[356847341,1743322247422,-500.0,0.00041095,30]
[356847342,1743322247431,-512.18725202,0.00041095,30]
[356847343,1743322247440,-537.05516628,0.00041095,30]
[356847344,1743322247450,-551.91081702,0.00041095,30]
[356847345,1743322247459,-500.0,0.00041095,30]
[356847346,1743322247468,-546.63333696,0.00041095,30]
[356847347,1743322247479,-500.0,0.00041095,30]
[356847348,1743322247489,-500.0,0.00041095,30]
[356847349,1743322247498,-513.36992503,0.00041095,30]
[356847350,1743322247509,-561.09970776,0.00041095,30]
[356847351,1743322247519,-510.39238536,0.00041095,30]
[356847352,1743322247528,-500.0,0.00041095,30]
[356847353,1743322247537,-500.0,0.00041095,30]
[356847354,1743322247548,-535.4010978,0.00041095,30]
[356847355,1743322247558,-500.0,0.00041095,30]
[356847356,1743322247567,-500.0,0.00041095,30]
[356847357,1743322247577,-573.21887244,0.00041095,30]
[356847358,1743322247586,-500.0,0.00041095,30]
[356847359,1743322247596,-576.8916859,0.00041095,30]
[356847360,1743322247605,-500.0,0.00041095,30]
[356847361,1743322247614,-512.45787444,0.00041095,30]
[356847362,1743322247624,-500.0,0.00041095,30]
[356847363,1743322247634,-500.0,0.00041095,30]
[356847364,1743322247644,-604.88586557,0.00041095,30]
[356847365,1743322247653,-500.0,0.00041095,30]
[356847366,1743322247662,-628.11274202,0.00041095,30]
[356847367,1743322247672,-522.8683945,0.00041095,30]
[356847368,1743322247681,-500.0,0.00041095,30]
[356847369,1743322247691,-500.0,0.00041095,30]
[356847370,1743322247701,-530.2648785,0.00041095,30]
[356847371,1743322247710,-535.66064797,0.00041095,30]
[356847372,1743322247722,-2332.31,0.00041095,7]
[356847373,1743322247824,-357.94535357,0.00041095,30]
[356847374,1743322247847,-500.0,0.00041095,30]
[356847375,1743322247857,-585.73779199,0.00041095,30]
[356847376,1743322247867,-172.3243142,0.00041095,30]
[356847377,1743322247876,-640.21423873,0.00041095,30]
[356847378,1743322247885,-500.0,0.00041095,30]
[356847379,1743322247895,-500.0,0.00041095,30]
[356847380,1743322247905,-500.0,0.00041095,30]
[356847381,1743322247914,-500.0,0.00041095,30]
[356847382,1743322247924,-500.0,0.00041095,30]
[356847383,1743322247934,-536.83638333,0.00041095,30]
[356847384,1743322247944,-500.0,0.00041095,30]
[356847385,1743322247954,-500.0,0.00041095,30]
[356847386,1743322247963,-500.0,0.00041095,30]
[356847387,1743322247973,-569.17936697,0.00041095,30]
[356847388,1743322247983,-500.0,0.00041095,30]
[356847389,1743322247993,-500.0,0.00041095,30]
[356847390,1743322248002,-723.03,0.00041095,30]
[356847391,1743322248011,-500.0,0.00041095,30]
[356847392,1743322248021,-567.15343834,0.00041095,30]
[356847393,1743322248030,-500.0,0.00041095,30]
[356847394,1743322248040,-529.52324417,0.00041095,30]
[356847395,1743322248049,-559.8336885,0.00041095,30]
[356847396,1743322248059,-500.0,0.00041095,30]
[356847397,1743322248068,-539.50943564,0.00041095,30]
[356847398,1743322248078,-504.49510215,0.00041095,30]
[356847399,1743322248087,-535.21801711,0.00041095,30]
[356847400,1743322248097,-550.10892783,0.00041095,30]
[356847401,1743322248107,-500.0,0.00041095,30]
[356847402,1743322248116,-500.0,0.00041095,30]
[356847403,1743322248126,-500.0,0.00041095,30]
[356847404,1743322248135,-500.0,0.00041095,30]
[356847405,1743322248145,-2000.0,0.00041095,30]
[356847406,1743322248155,-572.55988045,0.00041095,30]
[356847407,1743322248165,-500.0,0.00041095,30]
[356847408,1743322248174,-433.34140187,0.00041095,30]
[356847409,1743322250507,-66.65859813,0.00041095,30]
[356847410,1743322250516,-523.44480163,0.00041095,30]
[356847411,1743322250525,-591.10428388,0.00041095,30]
[356847412,1743322250534,-500.0,0.00041095,30]
[356847413,1743322250544,-500.0,0.00041095,30]
[356847414,1743322250553,-500.0,0.00041095,30]
[356847415,1743322250562,-506.36685731,0.00041095,30]
[356847416,1743322250571,-500.0,0.00041095,30]
[356847417,1743322250580,-500.0,0.00041095,30]
[356847418,1743322250589,-500.0,0.00041095,30]
[356847419,1743322250599,-552.12283582,0.00041095,30]
[356847420,1743322250611,-390.02153122,0.00041095,30]
[356847421,1743322250620,-500.0,0.00041095,30]
[356847422,1743322250629,-517.6109476,0.00041095,30]
[356847423,1743322250638,-500.0,0.00041095,30]
[356847424,1743322250647,-500.0,0.00041095,30]
[356847425,1743322250656,-519.26602553,0.00041095,30]
[356847426,1743322250665,-500.0,0.00041095,30]
[356847427,1743322250674,-271.34533112,0.00041095,30]
[356847428,1743322250683,-503.87309352,0.00041095,30]
[356847429,1743322250692,-610.98,0.00041095,30]
[356847430,1743322250701,-500.0,0.00041095,30]
[356847431,1743322250711,-518.29133692,0.00041095,30]
[356847432,1743322250720,-521.89282267,0.00041095,30]
[356847433,1743322250729,-500.0,0.00041095,30]
[356847434,1743322250741,-500.0,0.00041095,30]
[356847435,1743322250751,-500.0,0.00041095,30]
[356847436,1743322250760,-500.0,0.00041095,30]
[356847437,1743322250770,-760.31,0.00041095,30]
[356847438,1743322250782,-500.0,0.00041095,30]
[356847439,1743322250792,-504.10791675,0.00041095,30]
[356847440,1743322250802,-267.07270981,0.00041095,30]
[356847441,1743322250812,-500.0,0.00041095,30]
[356847442,1743322250822,-500.0,0.00041095,30]
[356847443,1743322250831,-500.0,0.00041095,30]
[356847444,1743322250841,-512.6479716,0.00041095,30]
[356847445,1743322250850,-500.0,0.00041095,30]
[356847446,1743322250862,-500.0,0.00041095,30]
[356847447,1743322250871,-500.0,0.00041095,30]
[356847448,1743322250881,-500.0,0.00041095,30]
[356847449,1743322250890,-500.0,0.00041095,30]
[356847450,1743322250900,-240.95757526,0.00041095,30]
[356847451,1743322250909,-594.4487561,0.00041095,30]
[356847452,1743322250918,-500.0,0.00041095,30]
[356847453,1743322250928,-510.76243773,0.00041095,30]
[356847454,1743322250937,-500.0,0.00041095,30]
[356847455,1743322250946,-500.0,0.00041095,30]
[356847456,1743322250954,-500.0,0.00041095,30]
[356847457,1743322250964,-645.37188036,0.00041095,30]
[356847458,1743322250973,-500.0,0.00041095,30]
[356847459,1743322250982,-529.18013482,0.00041095,30]
[356847460,1743322250994,-514.25626696,0.00041095,30]
[356847461,1743322251003,-500.0,0.00041095,30]
[356847462,1743322251013,-500.0,0.00041095,30]
[356847463,1743322251022,-456.45871665,0.00041095,30]
[356847464,1743322251031,-500.0,0.00041095,30]
[356847465,1743322251040,-326.43788179,0.00041095,30]
[356847466,1743322251050,-504.57890915,0.00041095,30]
[356847467,1743322251059,-500.0,0.00041095,30]
[356847468,1743322251068,-500.0,0.00041095,30]
[356847469,1743322251077,-500.0,0.00041095,30]
[356847470,1743322251086,-1507.08,0.00041095,30]
[356847471,1743322251095,-53.14795342,0.00041095,30]
[356847472,1743322251113,-446.85204658,0.00041095,30]
[356847473,1743322251122,-500.0,0.00041095,30]
[356847474,1743322251131,-524.40069819,0.00041095,30]
[356847475,1743322251141,-500.0,0.00041095,30]
[356847476,1743322251149,-528.61587371,0.00041095,30]
[356847477,1743322251158,-500.0,0.00041095,30]
[356847478,1743322251168,-500.0,0.00041095,30]
[356847479,1743322251178,-627.47410019,0.00041095,30]
[356847480,1743322251188,-500.0,0.00041095,30]
[356847481,1743322251197,-310.07190416,0.00041095,30]
[356847482,1743322251207,-541.44,0.00041095,30]
[356847483,1743322251216,-500.0,0.00041095,30]
[356847484,1743322251226,-500.0,0.00041095,2]
[356847485,1743322251236,-500.0,0.00041095,2]
[356847486,1743322251246,-500.0,0.00041095,30]
[356847487,1743322251255,-500.0,0.00041095,2]
[356847488,1743322251265,-382.07186218,0.00041095,2]
[356847489,1743322251278,-117.92813782,0.00041095,2]
[356847490,1743322251292,-500.0,0.00041095,2]
[356847491,1743322251301,-500.0,0.00041095,2]
[356847492,1743322251310,-500.0,0.00041095,2]
[356847493,1743322251320,-500.0,0.00041095,2]
[356847494,1743322251330,-500.0,0.00041095,2]
[356847495,1743322251339,-500.0,0.00041095,2]
[356847496,1743322251352,-500.0,0.00041095,30]
[356847497,1743322251362,-485.53229182,0.00041095,30]
[356847498,1743322251372,-500.0,0.00041095,2]
[356847499,1743322251382,-500.0,0.00041095,2]
[356847500,1743322251391,-500.0,0.00041095,2]
[356847501,1743322251401,-500.0,0.00041095,2]
[356847502,1743322251410,-500.0,0.00041095,2]
[356847503,1743322251420,-503.56113976,0.00041095,30]
[356847504,1743322251520,-500.0,0.00041095,2]
[356847505,1743322251543,-500.0,0.00041095,2]
[356847506,1743322251553,-500.0,0.00041095,30]
[356847507,1743322251562,-500.0,0.00041095,30]
[356847508,1743322251571,-604.19219723,0.00041095,30]
[356847509,1743322251581,-500.0,0.00041095,30]
[356847510,1743322251590,-500.0,0.00041095,2]
[356847511,1743322251600,-518.15962387,0.00041095,2]
[356847512,1743322251610,-500.0,0.00041095,30]
[356847513,1743322251619,-500.0,0.00041095,30]
[356847514,1743322251629,-500.0,0.00041095,30]
[356847515,1743322251639,-500.0,0.00041095,30]
[356847516,1743322251648,-533.08327952,0.00041095,30]
[356847517,1743322251657,-515.87000839,0.00041095,30]
[356847518,1743322251667,-500.0,0.00041095,30]
[356847519,1743322251676,-500.0,0.00041095,30]
[356847520,1743322251685,-506.75983372,0.00041095,30]
[356847521,1743322251695,-500.0,0.00041095,30]
[356847522,1743322251704,-500.0,0.00041095,30]
[356847523,1743322251713,-500.0,0.00041095,30]
[356847524,1743322251723,-500.0,0.00041095,30]
[356847525,1743322251733,-538.96985289,0.00041095,30]
[356847526,1743322251743,-500.0,0.00041095,30]
[356847527,1743322251753,-500.0,0.00041095,30]
[356847528,1743322251763,-500.0,0.00041095,30]
[356847529,1743322251772,-500.0,0.00041095,30]
[356847530,1743322251784,-1500.0,0.00041095,30]
[356847531,1743322251793,-500.0,0.00041095,30]
[356847532,1743322251803,-500.0,0.00041095,30]
[356847533,1743322251812,-500.0,0.00041095,30]
[356847534,1743322251823,-500.0,0.00041095,30]
[356847535,1743322251833,-500.0,0.00041095,30]
[356847536,1743322251842,-500.0,0.00041095,30]
[356847537,1743322251853,-500.0,0.00041095,30]
[356847538,1743322251864,-500.0,0.00041095,30]
[356847539,1743322251874,-500.0,0.00041095,30]
[356847540,1743322251884,-500.0,0.00041095,30]
[356847541,1743322251893,-500.0,0.00041095,30]
[356847542,1743322251903,-500.0,0.00041095,30]
[356847543,1743322251912,-500.0,0.00041095,30]
[356847544,1743322251922,-541.85351247,0.00041095,30]
[356847545,1743322251931,-522.00946897,0.00041095,30]
[356847546,1743322251940,-532.89475163,0.00041095,30]
[356847547,1743322251950,-500.0,0.00041095,30]
[356847548,1743322251959,-390.83518842,0.00041095,30]
[356847549,1743322251969,-509.93960793,0.00041095,30]
[356847550,1743322251978,-500.0,0.00041095,30]
[356847551,1743322251989,-500.0,0.00041095,30]
[356847552,1743322251998,-500.0,0.00041095,30]
[356847553,1743322252007,-500.0,0.00041095,30]
[356847554,1743322252017,-92.37610629,0.00041095,30]
[356847555,1743322252226,-436.812499,0.00041095,30]
[356847556,1743322252235,-521.37161461,0.00041095,30]
[356847557,1743322252244,-522.85426859,0.00041095,30]
[356847558,1743322252260,-500.0,0.00041095,30]
[356847559,1743322252270,-500.0,0.00041095,30]
[356847560,1743322252279,-500.0,0.00041095,30]
[356847561,1743322252287,-500.0,0.00041095,30]
[356847562,1743322252297,-500.0,0.00041095,30]
[356847563,1743322252306,-500.0,0.00041095,30]
[356847564,1743322252315,-525.58989722,0.00041095,30]
[356847565,1743322252324,-500.0,0.00041095,30]
[356847566,1743322252333,-519.05971496,0.00041095,30]
[356847567,1743322252343,-500.0,0.00041095,30]
[356847568,1743322252352,-541.03018354,0.00041095,30]
[356847569,1743322252361,-500.0,0.00041095,30]
[356847570,1743322252370,-500.0,0.00041095,30]
[356847571,1743322252379,-496.37382208,0.00041095,30]
[356847572,1743322252405,-28.58188881,0.00041095,30]
[356847573,1743322252414,-359.59095692,0.00041095,30]
[356847574,1743322252423,-500.0,0.00041095,30]
[356847575,1743322252433,-500.0,0.00041095,30]
[356847576,1743322252443,-500.0,0.00041095,30]
[356847577,1743322252452,-500.0,0.00041095,30]
[356847578,1743322252462,-528.55524201,0.00041095,30]
[356847579,1743322252471,-500.0,0.00041095,30]
[356847580,1743322252480,-500.0,0.00041095,30]
[356847581,1743322252490,-500.0,0.00041095,30]
[356847582,1743322252499,-544.83240282,0.00041095,30]
[356847583,1743322252510,-45.03039326,0.00041095,30]
[356847584,1743322388107,190.160512,7.945e-05,2]
[356847585,1743322648651,1000.0,0.00033102,30]
[356847588,1743323227070,279.34962162,0.00033105,30]
[356847601,1743323278895,304.42990811,0.0001,2]
[356847602,1743323278922,246.03458798,0.0001,2]
[356847604,1743323315666,493.1,0.00033105,120]
[356847606,1743323330569,500.0,0.00033105,120]
[356847635,1743323432313,-261.36076216,0.000149,2]
[356847637,1743323432370,-300.18963463,0.000149,2]
[356847638,1743323432379,-203.28393127,0.00014973,2]
[356847639,1743323432390,-296.71606873,0.00014973,2]
[356847640,1743323432400,-13.59393127,0.00014999,2]
[356847641,1743323432437,-189.11400442,0.00014999,2]
[356847642,1743323432446,-928.50249058,0.00015,2]
[356847643,1743323432480,-450.0,0.00015,2]
[356847644,1743323432491,-11035.77495328,0.00015,2]
[356847645,1743323432604,-19438.9939924,0.00015,2]
[356847669,1743323438264,-508.9531181,0.00015,2]
[356847670,1743323438276,-7706.03182819,0.00015,2]
[356847671,1743323438532,-1595.74317713,0.00015,2]
[356847672,1743323438544,-56535.60106938,0.00015,2]
[356847673,1743323440491,-830.31197266,0.00015,2]
[356847674,1743323440600,-441.94,0.00015,2]
[356847675,1743323440761,-4055.43180006,0.00015,2]
[356847697,1743323446134,500.0,0.00033105,120]
[356847698,1743323446148,-1048092.73906537,0.00015,2]
[356847700,1743323446433,-4000.0,0.00015,2]
[356847749,1743324139011,-5000.0,0.000149,2]
[356847920,1743324631535,-300.0,0.00014899,2]
[356847921,1743324631544,-175.15215895,0.000149,2]
[356847922,1743324631553,-1487.6285082,0.000149,2]
[356847923,1743324631691,-492.56648881,0.000149,2]
[356847924,1743324631802,-239.77666272,0.000149,2]
[356847925,1743324631812,-446.5560811,0.000149,2]
[356847934,1743324637542,-114.99431571,0.000149,2]
[356847935,1743324637552,-484.67809366,0.000149,2]
[356847936,1743324637562,-419.7149,0.000149,2]
[356847937,1743324637572,-6.87289237,0.00014973,2]
[356847938,1743324637597,-493.12710763,0.00014973,2]
[356847939,1743324637606,-197.06838826,0.00014999,2]
[356847940,1743324637616,-390.7773446,0.00014999,2]
[356847941,1743324637626,-816498.29117389,0.00015,2]
[356847942,1743324637724,-10357.0,0.00015,2]
[356847943,1743324637736,-1339.217088,0.00015,2]
[356847959,1743324639682,-1326.9,0.00015,2]
[356847960,1743324639790,-6454.96799207,0.00015,2]
[356847975,1743324642729,-388.6215323,0.00014999,2]
[356847976,1743324642739,-537.36552051,0.00015,2]
[356847977,1743324644600,-413.4868,0.00015,2]
[356847978,1743324644777,-373.5132,0.00015,2]
[356847982,1743324646386,-177856.65052706,0.00015,2]
[356847983,1743324646420,-710.00145659,0.00015,2]
[356847984,1743324646431,-395.88017901,0.00015,2]
[356848025,1743325110798,308.881,0.000147,2]
[356848192,1743325831908,-1997.97449382,0.000149,2]
[356848193,1743325831915,-161.83175448,0.000149,2]
[356848194,1743325831924,-1908.4872135,0.0001499,2]
[356848195,1743325831933,-150.0,0.00014999,2]
[356848196,1743325831942,-16105.70769439,0.00015,2]
[356848197,1743325832068,-2012.920012,0.00015,2]
[356848232,1743325837648,-658.28772264,0.00015,2]
[356848233,1743325837754,-728.92766959,0.00015,2]
[356848234,1743325837912,-263.0,0.00015,2]
[356848235,1743325837923,-12302.37659984,0.00015,2]
[356848248,1743325840165,-1742.89053932,0.00015,2]
[356848249,1743325840220,-8353.4,0.00015,2]
[356848250,1743325843559,-500950.00096699,0.00015,2]
[356848290,1743325845919,-12017.60679965,0.00015,2]
[356848292,1743325845930,-22665.5552414,0.00015,2]
[356848301,1743325927035,219.46066212,0.00014742,2]
[356848315,1743326421704,219.46066212,0.00014563,2]
[356848324,1743326878974,549.35725585,0.0001,2]
[356848538,1743327031963,-150.0,0.00014899,2]
[356848539,1743327031973,-588.53790114,0.000149,2]
[356848540,1743327031984,-3685.12116823,0.000149,2]
[356848541,1743327032022,-2039.40212491,0.000149,2]
[356848542,1743327032080,-1204.83600572,0.000149,2]
[356848543,1743327032090,-1365.2884,0.000149,2]
[356848544,1743327032100,-418.03313809,0.000149,2]
[356848545,1743327032193,-7960.48382933,0.000149,2]
[356848555,1743327038027,-871.7117907,0.000149,2]
[356848556,1743327038138,-463.24384188,0.000149,2]
[356848557,1743327038148,-19991.104,0.000149,2]
[356848558,1743327038157,-175.15215894,0.000149,2]
[356848559,1743327038167,-16091.078,0.000149,2]
[356848560,1743327038176,-216.5305851,0.000149,2]
[356848561,1743327038186,-84.20458628,0.000149,2]
[356848562,1743327038197,-2121.27141668,0.000149,2]
[356848563,1743327038206,-2867.25354903,0.000149,2]
[356848564,1743327038216,-2867.25354895,0.00014914,2]
[356848565,1743327038224,-2867.25354895,0.00014929,2]
[356848566,1743327038234,-2867.25354895,0.00014943,2]
[356848567,1743327038243,-2867.25354895,0.00014958,2]
[356848568,1743327038252,-2867.25354895,0.00014972,2]
[356848569,1743327038261,-2867.25354895,0.00014987,2]
[356848570,1743327038270,-76628.89068035,0.00015,2]
[356848571,1743327038289,-71666.31845191,0.00015,2]
[356848581,1743327040138,-1251677.39768535,0.00015,2]
[356848582,1743327040147,-200.0,0.00015,2]
[356848583,1743327040156,-284.181,0.00015,2]
[356848584,1743327040165,-1377789.02529999,0.00015,2]
[356848585,1743327040174,-2295446.83586526,0.00015,2]
[356848591,1743327045183,-79385.80001001,0.00015,2]
[356848600,1743327045972,-79331.64694165,0.00015,2]
[356848601,1743327046085,-536.27981719,0.00015,2]
[356848602,1743327081117,1000.0,0.00033096,30]
[356848855,1743328232112,-260.365,0.00014995,2]
[356848856,1743328232122,-150.0,0.00014999,2]
[356848857,1743328232132,-135.93676578,0.00014999,2]
[356848868,1743328238282,-164.06323422,0.00014999,2]
[356848869,1743328238292,-1155.3471139,0.00015,2]
[356848872,1743328240652,-292.0603544,0.00015,2]
[356848893,1743328246403,-411.65215967,0.000149,2]
[356848894,1743328246416,-7364.3561912,0.00015,2]
[356848895,1743328246432,-2490.19694045,0.00015,2]
[356848896,1743328246818,-102069.24718603,0.00015,2]
[356848897,1743328246855,-27430.81726784,0.00015,2]
[356848898,1743328246865,-157.54077904,0.00015,2]
[356848899,1743328246875,-843.48765788,0.00015836,2]
[356848900,1743328246892,-594.39914268,0.00015836,2]
[356848901,1743328246908,-4543.59585451,0.00015836,2]
[356848915,1743328403422,-225.39008775,0.00015747,2]
[356848916,1743328403446,-2674.60991225,0.00015836,2]
[356848971,1743328998729,500.0,0.00033082,120]
[356848972,1743329005608,174.99083414,0.00033082,120]
[356848973,1743329032878,1454.06332355,0.00033082,120]
[356849124,1743329432323,-500.0,0.00015835,2]
[356849125,1743329432333,-409.35779997,0.00015835,2]
[356849126,1743329432342,-5837.1131842,0.00015884,2]
[356849128,1743329432351,-9523.1617304,0.00015884,2]
[356849130,1743329432360,-150.0,0.00015918,2]
[356849132,1743329432369,-208.292,0.00017154,2]
[356849134,1743329432378,-150.0,0.00017296,2]
[356849136,1743329432388,-214.0,0.00017296,2]
[356849138,1743329432397,-28895.45596554,0.00017297,2]
[356849140,1743329432406,-166.88,0.00017665,2]
[356849142,1743329432415,-4681.27,0.00017665,2]
[356849144,1743329432425,-150.99,0.00017665,2]
[356849146,1743329432434,-381.12,0.00018533,2]
[356849148,1743329432443,-3728.05,0.00018533,2]
[356849150,1743329432452,-621.91,0.00018533,2]
[356849152,1743329432461,-165.08,0.000186,2]
[356849154,1743329432471,-250.0,0.00018638,2]
[356849155,1743329432480,-1829.34,0.00018643,2]
[356849157,1743329432489,-719.14363182,0.00019,2]
[356849159,1743329432498,-395.0973437,0.00019,2]
[356849161,1743329432508,-404.80197573,0.00019,2]
[356849163,1743329432517,-151.0,0.00019,2]
[356849165,1743329432527,-150.0,0.00019174,2]
[356849184,1743329432692,-500.0,0.00019775,2]
[356849187,1743329432702,-39624.26382407,0.0002,4]
[356849189,1743329432711,-600.0,0.0002013,2]